fUSD/lending_fUSD_20240301
["ID","MTS","AMOUNT","RATE_DAILY","PERIOD"]
[315927306,1709286643017,-1176.54,0.00021917,2]
[315927307,1709286643027,-967.69,0.00021917,2]
[315927308,1709286643036,-1754.78,0.00021917,2]
[315927309,1709286643045,-559.12,0.00021917,2]
[315927310,1709286643055,-500.0,0.00021917,2]
[315927311,1709286643064,-500.0,0.00021917,2]
[315927312,1709286643074,-959.71,0.00021917,2]
[315927313,1709286643083,-500.0,0.00021917,2]
[315927314,1709286643092,-577.17650735,0.00021917,2]
[315927315,1709286643101,-1388.21,0.00021917,2]
[315927318,1709286643111,-500.0,0.00021917,2]
[315927321,1709286643120,-510.83595249,0.00021917,2]
[315927323,1709286643129,-500.0,0.00021917,2]
[315927325,1709286643138,-500.0,0.00021917,2]
[315927326,1709286643148,-627.77,0.00021917,2]
[315927327,1709286643157,-500.0,0.00021917,2]
[315927328,1709286643167,-1042.12,0.00021917,2]
[315927329,1709286643176,-1042.12,0.00021917,2]
[315927330,1709286643185,-1042.12,0.00021917,2]
[315927331,1709286643194,-500.0,0.00021917,2]
[315927333,1709286643203,-4735.26,0.00021917,2]
[315927334,1709286643213,-500.0,0.00021917,2]
[315927335,1709286643222,-500.0,0.00021917,2]
[315927336,1709286643231,-1320.76,0.00021917,2]
[315927337,1709286643240,-747.63,0.00021917,2]
[315927338,1709286643250,-4035.02,0.00021917,2]
[315927339,1709286643259,-543.61547698,0.00021917,2]
[315927340,1709286643269,-500.0,0.00021917,2]
[315927341,1709286643278,-500.0,0.00021917,2]
[315927342,1709286643288,-500.0,0.00021917,2]
[315927343,1709286643297,-603.75,0.00021917,2]
[315927344,1709286643306,-753.73,0.00021917,2]
[315927345,1709286643316,-500.0,0.00021917,2]
[315927346,1709286643325,-500.0,0.00021917,2]
[315927347,1709286643334,-1080.29,0.00021917,2]
[315927348,1709286643343,-500.0,0.00021917,2]
[315927349,1709286643353,-500.0,0.00021917,2]
[315927350,1709286643362,-559.98783878,0.00021917,2]
[315927351,1709286643371,-2658.5,0.00021917,2]
[315927352,1709286643380,-500.0,0.00021917,2]
[315927353,1709286643390,-500.0,0.00021917,2]
[315927354,1709286643399,-1302.67,0.00021917,2]
[315927355,1709286643408,-500.0,0.00021917,2]
[315927356,1709286643418,-1024.16,0.00021917,2]
[315927357,1709286643428,-500.0,0.00021917,2]
[315927358,1709286643437,-500.0,0.00021917,2]
[315927359,1709286643447,-500.0,0.00021917,2]
[315927360,1709286643456,-2002.73,0.00021917,2]
[315927361,1709286643466,-500.0,0.00021917,2]
[315927362,1709286643476,-1581.01,0.00021917,2]
[315927363,1709286643485,-1921.94,0.00021917,2]
[315927364,1709286643495,-500.0,0.00021917,2]
[315927365,1709286643504,-500.0,0.00021917,2]
[315927366,1709286643514,-328.90216495,0.00021917,2]
[315927367,1709286643524,-500.0,0.00021917,2]
[315927368,1709286643533,-500.0,0.00021917,2]
[315927369,1709286643543,-1653.78,0.00021917,2]
[315927370,1709286643552,-1574.08,0.00021917,2]
[315927371,1709286643562,-500.0,0.00021917,2]
[315927372,1709286643571,-500.0,0.00021917,2]
[315927373,1709286643580,-1457.88,0.00021917,2]
[315927374,1709286643589,-500.0,0.00021917,2]
[315927375,1709286643599,-2354.43,0.00021917,2]
[315927376,1709286643608,-737.85,0.00021917,2]
[315927378,1709286643618,-559.84,0.00021917,2]
[315927380,1709286643627,-500.0,0.00021917,2]
[315927381,1709286643636,-500.0,0.00021917,2]
[315927383,1709286643645,-2301.82,0.00021917,2]
[315927385,1709286643655,-500.0,0.00021917,2]
[315927386,1709286643665,-986.15,0.00021917,2]
[315927387,1709286643674,-500.0,0.00021917,2]
[315927388,1709286643683,-500.0,0.00021917,2]
[315927389,1709286643693,-1979.38,0.00021917,2]
[315927390,1709286643701,-500.0,0.00021917,2]
[315927391,1709286643710,-781.31,0.00021917,2]
[315927392,1709286643720,-500.0,0.00021917,2]
[315927393,1709286643729,-500.0,0.00021917,2]
[315927394,1709286643738,-3574.32,0.00021917,2]
[315927395,1709286643747,-880.53,0.00021917,2]
[315927396,1709286643756,-939.72,0.00021917,2]
[315927397,1709286643766,-500.0,0.00021917,2]
[315927398,1709286643775,-500.0,0.00021917,2]
[315927399,1709286643784,-500.0,0.00021917,2]
[315927400,1709286643793,-1646.52,0.00021917,2]
[315927401,1709286643802,-759.99,0.00021917,2]
[315927402,1709286643811,-454.13633881,0.00021917,2]
[315927403,1709286643822,-500.0,0.00021917,2]
[315927404,1709286643831,-1470.79,0.00021917,2]
[315927405,1709286643843,-500.0,0.00021917,2]
[315927406,1709286643852,-1197.01,0.00021917,2]
[315927407,1709286643861,-500.0,0.00021917,2]
[315927408,1709286643870,-1401.85,0.00021917,2]
[315927409,1709286643879,-500.0,0.00021917,2]
[315927410,1709286643889,-813.53,0.00021917,2]
[315927411,1709286643898,-638.56,0.00021917,2]
[315927412,1709286643907,-914.2,0.00021917,2]
[315927413,1709286643917,-500.0,0.00021917,2]
[315927414,1709286643927,-500.0,0.00021917,2]
[315927415,1709286643935,-500.0,0.00021917,2]
[315927416,1709286643944,-559.55,0.00021917,2]
[315927417,1709286643953,-500.0,0.00021917,2]
[315927418,1709286643962,-1251.83,0.00021917,2]
[315927419,1709286643971,-712.68,0.00021917,2]
[315927420,1709286643980,-767.47,0.00021917,2]
[315927421,1709286643989,-5072.48,0.00021917,2]
[315927422,1709286643998,-500.0,0.00021917,2]
[315927423,1709286644008,-2110.94,0.00021917,2]
[315927424,1709286644017,-950.94,0.00021917,2]
[315927425,1709286644026,-760.76,0.00021917,2]
[315927426,1709286644035,-793.46,0.00021917,2]
[315927427,1709286644044,-500.0,0.00021917,2]
[315927428,1709286644053,-500.0,0.00021917,2]
[315927429,1709286644062,-1966.56,0.00021917,2]
[315927430,1709286644073,-1000.32,0.00021917,2]
[315927431,1709286644082,-500.0,0.00021917,2]
[315927432,1709286644091,-500.0,0.00021917,2]
[315927433,1709286644100,-161.42716297,0.00021917,2]
[315927434,1709286644110,-1025.72,0.00021917,2]
[315927435,1709286644120,-500.0,0.00021917,2]
[315927436,1709286644129,-957.28,0.00021917,2]
[315927437,1709286644138,-500.0,0.00021917,2]
[315927438,1709286644147,-500.0,0.00021917,2]
[315927439,1709286644156,-500.0,0.00021917,2]
[315927440,1709286644165,-980.02,0.00021917,2]
[315927441,1709286644174,-500.0,0.00021917,2]
[315927442,1709286644183,-370.41098896,0.00021917,2]
[315927443,1709286644193,-3931.43,0.00021917,2]
[315927444,1709286644202,-1565.17,0.00021917,2]
[315927445,1709286644212,-500.0,0.00021917,2]
[315927446,1709286644221,-500.0,0.00021917,2]
[315927447,1709286644230,-500.0,0.00021917,2]
[315927448,1709286644239,-3096.85,0.00021917,2]
[315927449,1709286644248,-500.0,0.00021917,2]
[315927450,1709286644257,-500.0,0.00021917,2]
[315927451,1709286644266,-626.24,0.00021917,2]
[315927452,1709286644275,-970.47,0.00021917,2]
[315927453,1709286644284,-2705.33,0.00021917,2]
[315927454,1709286644293,-500.0,0.00021917,2]
[315927455,1709286644302,-500.0,0.00021917,2]
[315927456,1709286644312,-500.0,0.00021917,2]
[315927457,1709286644322,-1723.23,0.00021917,2]
[315927458,1709286644332,-716.7,0.00021917,2]
[315927459,1709286644341,-506.69,0.00021917,2]
[315927460,1709286644350,-10483.66,0.00021917,2]
[315927461,1709286644359,-500.0,0.00021917,2]
[315927462,1709286644368,-1029.47,0.00021917,2]
[315927463,1709286644377,-6818.72,0.00021917,2]
[315927464,1709286644387,-500.0,0.00021917,2]
[315927465,1709286644396,-500.0,0.00021917,2]
[315927466,1709286644405,-500.0,0.00021917,2]
[315927467,1709286644414,-500.0,0.00021917,2]
[315927468,1709286644423,-700.44,0.00021917,2]
[315927469,1709286644433,-500.0,0.00021917,2]
[315927470,1709286644442,-500.0,0.00021917,2]
[315927471,1709286644451,-500.0,0.00021917,2]
[315927472,1709286644459,-2062.17,0.00021917,2]
[315927473,1709286644469,-500.0,0.00021917,2]
[315927474,1709286644478,-639.06,0.00021917,2]
[315927475,1709286644487,-500.0,0.00021917,2]
[315927476,1709286644496,-1213.1,0.00021917,2]
[315927477,1709286644505,-7715.62,0.00021917,2]
[315927478,1709286644515,-500.0,0.00021917,2]
[315927479,1709286644525,-500.0,0.00021917,2]
[315927480,1709286644536,-500.0,0.00021917,2]
[315927481,1709286644547,-1040.36,0.00021917,2]
[315927482,1709286644556,-500.0,0.00021917,2]
[315927483,1709286644566,-500.0,0.00021917,2]
[315927484,1709286644575,-1125.03,0.00021917,2]
[315927485,1709286644584,-500.0,0.00021917,2]
[315927486,1709286644593,-500.0,0.00021917,2]
[315927487,1709286644602,-500.0,0.00021917,2]
[315927488,1709286644611,-156.93,0.00021918,2]
[315927489,1709286644621,-387.65,0.00021918,2]
[315927490,1709286644630,-157.07,0.00021918,2]
[315927491,1709286644639,-157.2,0.00021918,2]
[315927492,1709286644649,-154.19,0.00021918,2]
[315927493,1709286644658,-200.38847529,0.00021918,2]
[315927494,1709286644668,-200.0,0.00021987,2]
[315927495,1709286644678,-612.22801672,0.00022,2]
[315927496,1709286644687,-1000.0,0.00022,2]
[315927497,1709286644696,-1000.0,0.00022,2]
[315927498,1709286644705,-3278.8183407,0.00022,2]
[315927499,1709286644715,-400.0,0.00022,3]
[315927500,1709286644725,-261.0,0.00022,2]
[315927501,1709286644734,-178.0,0.00022013,2]
[315927502,1709286644743,-150.0,0.00022018,2]
[315927503,1709286644752,-211.49,0.00022033,2]
[315927504,1709286644762,-387.65,0.00022033,2]
[315927505,1709286644775,-500.0,0.00022048,2]
[315927506,1709286644785,-245.9,0.00022058,3]
[315927507,1709286644795,-185.21456437,0.00022067,2]
[315927508,1709286644805,-488.48707728,0.00022069,2]
[315927509,1709286644814,-156.93,0.00022086,2]
[315927510,1709286644826,-210.0,0.00022091,2]
[315927511,1709286644836,-152.04254933,0.00022091,2]
[315927512,1709286644849,-218.25669388,0.00022091,2]
[315927513,1709286644860,-1042.12,0.00022096,2]
[315927514,1709286644870,-5512.86460346,0.00022097,2]
[315927515,1709286644879,-20000.0,0.000221,2]
[315927516,1709286644888,-166.46974367,0.00022122,2]
[315927517,1709286644898,-264.3,0.00022124,2]
[315927518,1709286644907,-211.49,0.00022149,2]
[315927519,1709286644917,-387.65,0.00022149,2]
[315927520,1709286644926,-200.0,0.00022156,2]
[315927521,1709286644936,-500.0,0.0002219,2]
[315927522,1709286644945,-500.0,0.0002219,2]
[315927523,1709286644954,-1042.12,0.0002219,2]
[315927524,1709286644963,-1042.12,0.0002219,2]
[315927525,1709286644972,-500.0,0.00022191,2]
[315927526,1709286644981,-500.0,0.00022191,2]
[315927527,1709286644990,-500.0,0.00022191,2]
[315927528,1709286644999,-500.0,0.00022191,2]
[315927529,1709286645008,-514.95161282,0.00022191,2]
[315927530,1709286645017,-500.0,0.00022191,2]
[315927531,1709286645026,-500.0,0.00022191,2]
[315927532,1709286645036,-500.0,0.00022191,2]
[315927533,1709286645045,-500.0,0.00022191,2]
[315927534,1709286645054,-500.0,0.00022191,2]
[315927535,1709286645063,-500.0,0.00022191,2]
[315927536,1709286645073,-500.0,0.00022191,2]
[315927537,1709286645082,-500.0,0.00022191,2]
[315927538,1709286645091,-500.0,0.00022191,2]
[315927539,1709286645100,-511.64502009,0.00022191,2]
[315927540,1709286645109,-500.0,0.00022191,2]
[315927541,1709286645119,-723.88,0.00022191,2]
[315927542,1709286645128,-500.0,0.00022191,2]
[315927543,1709286645138,-500.0,0.00022191,2]
[315927544,1709286645147,-598.99574488,0.00022191,2]
[315927545,1709286645156,-500.0,0.00022191,2]
[315927546,1709286645166,-500.0,0.00022191,2]
[315927547,1709286645175,-500.0,0.00022191,2]
[315927548,1709286645184,-500.0,0.00022191,2]
[315927549,1709286645194,-500.0,0.00022191,2]
[315927550,1709286645203,-500.0,0.00022191,2]
[315927551,1709286645212,-524.33998603,0.00022191,2]
[315927552,1709286645221,-500.0,0.00022191,2]
[315927553,1709286645231,-500.0,0.00022191,2]
[315927554,1709286645241,-500.0,0.00022191,2]
[315927555,1709286645250,-500.0,0.00022191,2]
[315927556,1709286645259,-500.0,0.00022191,2]
[315927557,1709286645269,-379.05539617,0.00022191,2]
[315927558,1709286645278,-500.0,0.00022191,2]
[315927559,1709286645287,-500.0,0.00022191,2]
[315927560,1709286645296,-519.68889396,0.00022191,2]
[315927561,1709286645306,-500.0,0.00022191,2]
[315927562,1709286645315,-500.0,0.00022191,2]
[315927563,1709286645325,-500.0,0.00022191,2]
[315927564,1709286645334,-500.0,0.00022191,2]
[315927565,1709286645344,-500.0,0.00022191,2]
[315927566,1709286645354,-500.0,0.00022191,2]
[315927567,1709286645363,-500.0,0.00022191,2]
[315927568,1709286645373,-500.0,0.00022191,2]
[315927569,1709286645382,-500.0,0.00022191,2]
[315927570,1709286645392,-500.0,0.00022191,2]
[315927571,1709286645401,-500.0,0.00022191,2]
[315927572,1709286645411,-500.0,0.00022191,2]
[315927573,1709286645421,-500.0,0.00022191,2]
[315927574,1709286645431,-517.1631947,0.00022191,2]
[315927575,1709286645440,-500.0,0.00022191,2]
[315927576,1709286645450,-509.24935374,0.00022191,2]
[315927577,1709286645461,-500.0,0.00022191,2]
[315927578,1709286645472,-509.93,0.00022191,2]
[315927579,1709286645483,-604.51815548,0.00022191,2]
[315927580,1709286645493,-500.0,0.00022191,2]
[315927581,1709286645503,-500.0,0.00022191,2]
[315927582,1709286645512,-500.0,0.00022191,2]
[315927583,1709286645522,-500.0,0.00022191,2]
[315927584,1709286645531,-500.0,0.00022191,2]
[315927585,1709286645541,-500.0,0.00022191,2]
[315927586,1709286645551,-500.0,0.00022191,2]
[315927587,1709286645561,-500.0,0.00022191,2]
[315927588,1709286645571,-508.98939591,0.00022191,2]
[315927589,1709286645584,-500.0,0.00022191,2]
[315927590,1709286645597,-809.74,0.00022191,2]
[315927591,1709286645607,-151.0,0.00022191,7]
[315927592,1709286645618,-152.159832,0.00022191,7]
[315927593,1709286645627,-500.0,0.00022191,2]
[315927594,1709286645637,-500.0,0.00022191,2]
[315927595,1709286645647,-500.0,0.00022191,2]
[315927596,1709286645658,-642.93,0.00022191,2]
[315927597,1709286645668,-500.0,0.00022191,2]
[315927598,1709286645783,-500.0,0.00022191,2]
[315927599,1709286645806,-891.99,0.00022191,2]
[315927600,1709286645816,-500.0,0.00022191,2]
[315927601,1709286645825,-500.0,0.00022191,2]
[315927602,1709286645840,-587.77,0.00022191,2]
[315927603,1709286645851,-500.0,0.00022191,2]
[315927604,1709286645861,-500.0,0.00022191,2]
[315927605,1709286645870,-500.0,0.00022191,2]
[315927606,1709286645879,-549.68,0.00022191,2]
[315927607,1709286645888,-515.6412923,0.00022191,2]
[315927608,1709286645898,-500.0,0.00022191,2]
[315927609,1709286645908,-568.16,0.00022191,2]
[315927610,1709286645917,-928.5,0.00022191,2]
[315927611,1709286645927,-500.0,0.00022191,2]
[315927612,1709286645936,-500.0,0.00022191,2]
[315927613,1709286645945,-850.67,0.00022191,2]
[315927614,1709286645954,-500.0,0.00022191,2]
[315927615,1709286645964,-500.0,0.00022191,2]
[315927616,1709286645974,-500.0,0.00022191,2]
[315927617,1709286645983,-500.0,0.00022191,2]
[315927618,1709286645993,-641.12,0.00022191,2]
[315927619,1709286646003,-500.0,0.00022191,2]
[315927620,1709286646012,-588.92,0.00022191,2]
[315927621,1709286646022,-500.0,0.00022191,2]
[315927622,1709286646031,-566.76,0.00022191,2]
[315927623,1709286646041,-1478.85,0.00022191,2]
[315927624,1709286646051,-500.0,0.00022191,2]
[315927625,1709286646060,-500.0,0.00022191,2]
[315927626,1709286646071,-500.0,0.00022191,2]
[315927627,1709286646081,-500.0,0.00022191,2]
[315927628,1709286646091,-500.0,0.00022191,2]
[315927629,1709286646100,-597.0,0.00022191,2]
[315927630,1709286646110,-500.0,0.00022191,2]
[315927632,1709286646120,-500.0,0.00022191,2]
[315927634,1709286646130,-500.0,0.00022191,2]
[315927636,1709286646140,-500.0,0.00022191,2]
[315927638,1709286646150,-500.0,0.00022191,2]
[315927640,1709286646160,-560.72,0.00022191,2]
[315927642,1709286646170,-686.8,0.00022191,2]
[315927644,1709286646180,-545.6,0.00022191,2]
[315927646,1709286646190,-507.73021058,0.00022191,2]
[315927648,1709286646200,-500.0,0.00022191,2]
[315927650,1709286646210,-500.0,0.00022191,2]
[315927652,1709286646219,-500.0,0.00022191,2]
[315927654,1709286646229,-500.0,0.00022191,2]
[315927656,1709286646238,-508.04390894,0.00022191,2]
[315927658,1709286646248,-683.77,0.00022191,2]
[315927660,1709286646258,-500.0,0.00022191,2]
[315927662,1709286646268,-500.0,0.00022191,2]
[315927664,1709286646278,-500.0,0.00022191,2]
[315927665,1709286646288,-500.0,0.00022191,2]
[315927666,1709286646299,-500.0,0.00022191,2]
[315927667,1709286646309,-500.0,0.00022191,2]
[315927668,1709286646320,-500.0,0.00022191,2]
[315927669,1709286646330,-610.95,0.00022191,2]
[315927670,1709286646340,-500.0,0.00022191,2]
[315927671,1709286646350,-652.48,0.00022191,2]
[315927672,1709286646360,-610.61,0.00022191,2]
[315927673,1709286646370,-500.0,0.00022191,2]
[315927674,1709286646380,-500.0,0.00022191,2]
[315927675,1709286646390,-500.0,0.00022191,2]
[315927676,1709286646399,-500.0,0.00022191,2]
[315927677,1709286646409,-500.0,0.00022191,2]
[315927678,1709286646419,-500.0,0.00022191,2]
[315927679,1709286646429,-505.65,0.00022191,2]
[315927680,1709286646439,-500.0,0.00022191,2]
[315927681,1709286646448,-770.62,0.00022191,2]
[315927682,1709286646457,-500.0,0.00022191,2]
[315927683,1709286646467,-500.0,0.00022191,2]
[315927684,1709286646476,-491.9571941,0.00022191,2]
[315927685,1709286646486,-1194.24,0.00022191,2]
[315927686,1709286646495,-500.0,0.00022191,2]
[315927687,1709286646505,-500.0,0.00022191,2]
[315927688,1709286646515,-500.0,0.00022191,2]
[315927689,1709286646525,-500.0,0.00022191,2]
[315927690,1709286646535,-874.08,0.00022191,2]
[315927691,1709286646544,-500.0,0.00022191,2]
[315927692,1709286646556,-500.0,0.00022191,2]
[315927693,1709286646567,-500.0,0.00022191,2]
[315927694,1709286646578,-522.96,0.00022191,2]
[315927695,1709286646587,-1241.26,0.00022191,2]
[315927696,1709286646597,-500.0,0.00022191,2]
[315927697,1709286646606,-500.0,0.00022191,2]
[315927698,1709286646616,-500.0,0.00022191,2]
[315927699,1709286646625,-500.0,0.00022191,2]
[315927700,1709286646635,-748.26,0.00022191,2]
[315927701,1709286646644,-500.0,0.00022191,2]
[315927702,1709286646653,-500.0,0.00022191,2]
[315927703,1709286646662,-500.0,0.00022191,2]
[315927704,1709286646672,-500.0,0.00022191,2]
[315927705,1709286646681,-500.0,0.00022191,2]
[315927706,1709286646690,-500.0,0.00022191,2]
[315927707,1709286646700,-865.27,0.00022191,2]
[315927708,1709286646709,-500.0,0.00022191,2]
[315927709,1709286646719,-500.0,0.00022191,2]
[315927710,1709286646728,-500.0,0.00022191,2]
[315927711,1709286646743,-500.0,0.00022191,2]
[315927712,1709286646753,-500.0,0.00022191,2]
[315927713,1709286646762,-500.0,0.00022191,2]
[315927714,1709286646773,-500.0,0.00022191,2]
[315927715,1709286646783,-500.0,0.00022191,2]
[315927716,1709286646794,-500.0,0.00022191,2]
[315927717,1709286646804,-1132.05,0.00022191,2]
[315927718,1709286646813,-500.0,0.00022191,2]
[315927719,1709286646824,-500.0,0.00022191,2]
[315927720,1709286646837,-500.0,0.00022191,2]
[315927721,1709286646847,-500.0,0.00022191,2]
[315927722,1709286646857,-500.0,0.00022191,2]
[315927723,1709286646866,-500.0,0.00022191,2]
[315927724,1709286646876,-500.0,0.00022191,2]
[315927725,1709286646886,-500.0,0.00022191,2]
[315927726,1709286646896,-607.6,0.00022191,2]
[315927727,1709286646906,-500.0,0.00022191,2]
[315927728,1709286646916,-500.0,0.00022191,2]
[315927729,1709286646927,-500.0,0.00022191,2]
[315927730,1709286646937,-500.0,0.00022191,2]
[315927731,1709286646947,-978.97,0.00022191,2]
[315927732,1709286646957,-500.0,0.00022191,2]
[315927733,1709286646967,-500.0,0.00022191,2]
[315927734,1709286646977,-500.0,0.00022191,2]
[315927735,1709286646987,-500.0,0.00022191,2]
[315927736,1709286646996,-500.0,0.00022191,2]
[315927737,1709286647010,-574.3,0.00022191,2]
[315927738,1709286647020,-500.0,0.00022191,2]
[315927739,1709286647030,-500.0,0.00022191,2]
[315927740,1709286647040,-500.0,0.00022191,2]
[315927741,1709286647051,-500.0,0.00022191,2]
[315927742,1709286647062,-500.0,0.00022191,2]
[315927743,1709286647075,-500.0,0.00022191,2]
[315927744,1709286647086,-644.4,0.00022191,2]
[315927745,1709286647096,-500.0,0.00022191,2]
[315927746,1709286647106,-557.38543119,0.00022191,2]
[315927747,1709286647117,-542.2,0.00022191,2]
[315927748,1709286647127,-500.0,0.00022191,2]
[315927749,1709286647137,-500.0,0.00022191,2]
[315927750,1709286647147,-500.0,0.00022191,2]
[315927751,1709286647158,-500.0,0.00022191,2]
[315927752,1709286647168,-500.0,0.00022191,2]
[315927753,1709286647178,-567.19025377,0.00022191,2]
[315927754,1709286647188,-536.14,0.00022191,2]
[315927755,1709286647198,-500.0,0.00022191,2]
[315927756,1709286647209,-500.0,0.00022191,2]
[315927757,1709286647219,-1413.11,0.00022191,2]
[315927758,1709286647229,-601.93,0.00022191,2]
[315927759,1709286647239,-527.78,0.00022191,2]
[315927760,1709286647248,-500.0,0.00022191,2]
[315927761,1709286647259,-500.0,0.00022191,2]
[315927762,1709286647273,-500.0,0.00022191,2]
[315927763,1709286647284,-500.0,0.00022191,2]
[315927764,1709286647294,-500.0,0.00022191,2]
[315927765,1709286647304,-760.93,0.00022191,2]
[315927766,1709286647314,-500.0,0.00022191,2]
[315927767,1709286647325,-661.59,0.00022191,2]
[315927768,1709286647335,-500.0,0.00022191,2]
[315927769,1709286647345,-500.0,0.00022191,2]
[315927770,1709286647355,-612.4,0.00022191,2]
[315927771,1709286647365,-288.60963797,0.00022191,2]
[315927772,1709286647376,-500.0,0.00022191,2]
[315927773,1709286647386,-500.0,0.00022191,2]
[315927774,1709286647396,-1211.12,0.00022191,2]
[315927775,1709286647406,-1226.12,0.00022191,2]
[315927776,1709286647416,-610.56,0.00022191,2]
[315927777,1709286647427,-500.0,0.00022191,2]
[315927778,1709286647436,-500.0,0.00022191,2]
[315927779,1709286647446,-500.0,0.00022191,2]
[315927780,1709286647457,-500.0,0.00022191,2]
[315927781,1709286647467,-500.0,0.00022191,2]
[315927782,1709286647478,-500.0,0.00022191,2]
[315927783,1709286647489,-500.0,0.00022191,2]
[315927784,1709286647498,-500.0,0.00022191,2]
[315927785,1709286647510,-500.0,0.00022191,2]
[315927786,1709286647521,-500.0,0.00022191,2]
[315927787,1709286647531,-500.0,0.00022191,2]
[315927788,1709286647540,-500.0,0.00022191,2]
[315927789,1709286647550,-500.0,0.00022191,2]
[315927790,1709286647560,-500.0,0.00022191,2]
[315927791,1709286647572,-500.0,0.00022191,2]
[315927792,1709286647582,-500.0,0.00022191,2]
[315927793,1709286647591,-500.0,0.00022191,2]
[315927794,1709286647602,-500.0,0.00022191,2]
[315927795,1709286647612,-500.0,0.00022191,2]
[315927796,1709286647621,-500.0,0.00022191,2]
[315927797,1709286647631,-678.01,0.00022191,2]
[315927798,1709286647642,-500.0,0.00022191,2]
[315927799,1709286647651,-607.89,0.00022191,2]
[315927800,1709286647661,-500.0,0.00022191,2]
[315927801,1709286647671,-500.0,0.00022191,2]
[315927802,1709286647680,-500.0,0.00022191,2]
[315927803,1709286647690,-528.05,0.00022191,2]
[315927804,1709286647699,-1000.42,0.00022191,2]
[315927805,1709286647709,-500.0,0.00022191,2]
[315927806,1709286647719,-500.0,0.00022191,2]
[315927807,1709286647729,-771.94,0.00022191,2]
[315927808,1709286647738,-500.0,0.00022191,2]
[315927809,1709286647748,-500.0,0.00022191,2]
[315927810,1709286647758,-763.18,0.00022191,2]
[315927811,1709286647768,-500.0,0.00022191,2]
[315927812,1709286647777,-500.0,0.00022191,2]
[315927813,1709286647787,-500.0,0.00022191,2]
[315927814,1709286647797,-500.0,0.00022191,2]
[315927821,1709286648198,-682.38,0.00022191,2]
[315927823,1709286648207,-575.03,0.00022191,2]
[315927826,1709286648217,-593.24705312,0.00022191,2]
[315927828,1709286648227,-872.31,0.00022191,2]
[315927830,1709286648236,-500.0,0.00022191,2]
[315927833,1709286648246,-500.0,0.00022191,2]
[315927834,1709286648255,-510.16,0.00022191,2]
[315927837,1709286648265,-739.35,0.00022191,2]
[315927839,1709286648274,-500.0,0.00022191,2]
[315927841,1709286648284,-501.63,0.00022191,2]
[315927843,1709286648293,-500.0,0.00022191,2]
[315927845,1709286648302,-500.0,0.00022191,2]
[315927847,1709286648312,-500.0,0.00022191,2]
[315927849,1709286648322,-500.0,0.00022191,2]
[315927850,1709286648332,-500.0,0.00022191,2]
[315927852,1709286648341,-665.66,0.00022191,2]
[315927854,1709286648351,-500.0,0.00022191,2]
[315927855,1709286648360,-500.0,0.00022191,2]
[315927856,1709286648369,-500.0,0.00022191,2]